[Event "GER-ch Youth U10W 2020"]
[Site "Willingen"]
[Date "2020.10.31"]
[Round "7.10"]
[White "Le, Thao-Linh"]
[Black "Yan, Jenny"]
[Result "1-0"]
[ECO "C26"]
[WhiteElo "1121"]
[BlackElo "952"]
[Annotator "NA RC"]
[PlyCount "83"]
[EventDate "2020.10.27"]
[EventType "swiss"]
[EventRounds "7"]
[EventCountry "GER"]
[SourceTitle "playchess.com"]
[Source "ChessBase"]
[SourceQuality "1"]
[TimeControl "40/4500+30:900+30"]

1. e4 {[%emt 0:00:14]} e5 {[%emt 0:00:00]} 2. Nc3 {[%emt 0:00:26]} Nf6 {[%emt 0:00:03]} 3. g3 {[%emt 0:01:51]} d5 {[%emt 0:00:40]} 4. exd5 {[%emt 0:01:30]} Nxd5 {[%emt 0:00:48]} 5. Bg2 {[%emt 0:01:27]} Nxc3 {[%emt 0:00:41]} 6. bxc3 {[%emt 0:02:37]} Nc6 {[%emt 0:01:15]} 7. Rb1 {[%emt 0:01:17]} Bc5 {[%emt 0:00:54]} 8. Ne2 {[%emt 0:01:00]} Bb6 {[%emt 0:01:55]} 9. d3 {[%emt 0:01:57]} Be6 {[%emt 0:00:29]} 10. Ba3 {[%emt 0:02:54]} Bxa2 {[%emt 0:01:59]} 11. Rb2 {[%emt 0:00:41]} Bd5 {[%emt 0:01:04]} 12. O-O {[%emt 0:09:58]} Bxg2 {[%emt 0:01:07]} 13. Kxg2 {[%emt 0:00:09]} Ne7 {[%emt 0:01:24]} 14. d4 {[%emt 0:02:51]} exd4 {[%emt 0:02:58]} 15. Nxd4 {[%emt 0:00:23]} O-O {[%emt 0:00:36]} 16. Re1 {[%emt 0:00:14]} c5 {[%emt 0:02:02]} 17. Qg4 {[%emt 0:01:32]} Re8 {[%emt 0:02:37]} 18. Nf5 {[%emt 0:01:06]} Nxf5 {[%emt 0:00:40]} 19. Rxe8+ {[%emt 0:00:31]} Qxe8 {[%emt 0:00:20]} 20. Qxf5 {[%emt 0:00:38]} Qc6+ {[%emt 0:00:26]} 21. Kg1 {[%emt 0:00:46]} Qc8 {[%emt 0:01:59]} 22. Qg5 {[%emt 0:02:00]} Qc6 {[%emt 0:00:58]} 23. c4 {[%emt 0:01:08]} Rd8 {[%emt 0:00:36]} 24. Rb1 {[%emt 0:00:49]} f6 {[%emt 0:01:30]} 25. Qg4 {[%emt 0:02:13]} Qa4 {[%emt 0:01:52]} 26. Bc1 {[%emt 0:02:11]} Qxc2 {[%emt 0:00:55]} 27. Ra1 {[%emt 0:01:25]} Qd1+ {[%emt 0:00:29]} 28. Qxd1 {[%emt 0:00:17]} Rxd1+ {[%emt 0:00:13]} 29. Kg2 {[%emt 0:00:09]} Bc7 {[%emt 0:01:47]} 30. Kf3 {[%emt 0:00:28]} Be5 {[%emt 0:00:32]} 31. Rb1 {[%emt 0:01:39]} Kf7 {[%emt 0:00:19]} 32. Ke2 {[%emt 0:00:10]} Rh1 {[%emt 0:00:23]} 33. Rxb7+ {[%emt 0:00:14]} Kg6 {[%emt 0:00:21]} 34. Be3 {[%emt 0:01:47]} Bd4 {[%emt 0:00:31]} 35. Bxd4 {[%emt 0:01:00]} cxd4 {[%emt 0:00:12]} 36. c5 {[%emt 0:00:04]} Rc1 {[%emt 0:00:56]} 37. Rb5 {[%emt 0:00:15]} a6 {[%emt 0:01:03]} 38. Ra5 {[%emt 0:00:10]} Rc3 {[%emt 0:01:47]} 39. Kd2 {[%emt 0:02:08]} h5 {[%emt 0:01:27]} 40. h3 {[%emt 0:02:14]} f5 {[%emt 0:00:30]} 41. Rxa6+ {[%emt 0:16:03]} Kg5 {[%emt 0:15:45]} 42. f4# 1-0

[Event "GER-ch Youth U10W 2020"]
[Site "Willingen"]
[Date "2020.10.31"]
[Round "7.11"]
[White "Manakov, Luisa"]
[Black "Becker, Hanna Charlotte"]
[Result "1-0"]
[ECO "C54"]
[WhiteElo "1103"]
[BlackElo "853"]
[Annotator "NA RC"]
[PlyCount "51"]
[EventDate "2020.10.27"]
[EventType "swiss"]
[EventRounds "7"]
[EventCountry "GER"]
[SourceTitle "playchess.com"]
[Source "ChessBase"]
[SourceQuality "1"]
[TimeControl "40/4500+30:900+30"]

1. e4 {[%emt 0:00:00]} e5 {[%emt 0:00:00]} 2. Nf3 {[%emt 0:00:00]} Nc6 {[%emt 0:00:00]} 3. Bc4 {[%emt 0:00:00]} Bc5 {[%emt 0:00:23]} 4. c3 {[%emt 0:00:00]} Nf6 {[%emt 0:00:55]} 5. d4 {[%emt 0:00:10]} exd4 {[%emt 0:00:20]} 6. cxd4 {[%emt 0:00:08]} Bb4+ {[%emt 0:00:36]} 7. Nc3 {[%emt 0:00:11]} Nxe4 {[%emt 0:00:56]} 8. O-O {[%emt 0:00:18]} Nxc3 {[%emt 0:00:53]} 9. bxc3 {[%emt 0:00:09]} Bxc3 {[%emt 0:00:25]} 10. Qb3 {[%emt 0:00:15]} Bxa1 {[%emt 0:00:51]} 11. Bxf7+ {[%emt 0:00:13]} Kf8 {[%emt 0:00:46]} 12. Bg5 {[%emt 0:00:08]} Ne7 {[%emt 0:01:17]} 13. Re1 {[%emt 0:00:39]} d5 {[%emt 0:01:26]} 14. Bxe7+ {[%emt 0:02:19]} Qxe7 {[%emt 0:01:09]} 15. Rxe7 {[%emt 0:00:09]} Kxe7 {[%emt 0:00:24]} 16. Bxd5 {[%emt 0:00:08]} Bg4 {[%emt 0:01:12]} 17. Qc2 {[%emt 0:00:22]} c6 {[%emt 0:02:25]} 18. Qc5+ {[%emt 0:01:58]} Kd7 {[%emt 0:01:10]} 19. Ne5+ {[%emt 0:00:15]} Kc8 {[%emt 0:01:20]} 20. Nxg4 {[%emt 0:00:29]} Re8 {[%emt 0:01:01]} 21. g3 {[%emt 0:00:40]} Re1+ {[%emt 0:02:09]} 22. Kg2 {[%emt 0:00:12]} h5 {[%emt 0:02:50]} 23. Ne5 {[%emt 0:00:44]} Rd1 {[%emt 0:01:20]} 24. Bxc6 {[%emt 0:02:00]} bxc6 {[%emt 0:01:19]} 25. Qxc6+ {[%emt 0:00:08]} Kb8 {[%emt 0:00:18]} 26. Nd7# {[%emt 0:00:05]} 1-0

[Event "GER-ch Youth U10W 2020"]
[Site "Willingen"]
[Date "2020.10.31"]
[Round "7.12"]
[White "Strübel, Katharina"]
[Black "Wolf, Anna"]
[Result "1-0"]
[ECO "C02"]
[WhiteElo "1091"]
[BlackElo "1098"]
[Annotator "NA RC"]
[PlyCount "135"]
[EventDate "2020.10.27"]
[EventType "swiss"]
[EventRounds "7"]
[EventCountry "GER"]
[SourceTitle "playchess.com"]
[Source "ChessBase"]
[SourceQuality "1"]
[TimeControl "40/4500+30:900+30"]

1. e4 {[%emt 0:00:00]} e6 {[%emt 0:00:00]} 2. d4 {[%emt 0:00:00]} d5 {[%emt 0:00:00]} 3. e5 {[%emt 0:00:26]} c5 {[%emt 0:00:00]} 4. c3 {[%emt 0:00:44]} Nc6 {[%emt 0:00:30]} 5. Nf3 {[%emt 0:00:35]} Qb6 {[%emt 0:00:17]} 6. Be2 {[%emt 0:01:26]} Bd7 {[%emt 0:00:10]} 7. a3 {[%emt 0:02:03]} Nge7 {[%emt 0:01:24]} 8. b4 {[%emt 0:01:15]} cxd4 {[%emt 0:00:12]} 9. cxd4 {[%emt 0:01:01]} Nf5 {[%emt 0:00:36]} 10. Bb2 {[%emt 0:02:05]} Be7 {[%emt 0:01:21]} 11. O-O a6 {[%emt 0:03:02]} 12. Qd3 {[%emt 0:11:33]} O-O {[%emt 0:02:40]} 13. b5 {[%emt 0:04:13]} axb5 {[%emt 0:03:33]} 14. Qxb5 {[%emt 0:00:55]} Qxb5 {[%emt 0:04:47]} 15. Bxb5 {[%emt 0:05:08]} Rfc8 {[%emt 0:01:45]} 16. Nc3 Nb8 {[%emt 0:03:13]} 17. Bd3 {[%emt 0:07:10]} Nh4 {[%emt 0:05:23]} 18. Nd2 {[%emt 0:03:14]} Nc6 {[%emt 0:01:55]} 19. g3 {[%emt 0:01:43]} Nf5 {[%emt 0:00:45]} 20. Bxf5 {[%emt 0:00:31]} exf5 {[%emt 0:00:44]} 21. Nxd5 {[%emt 0:00:36]} Bd8 {[%emt 0:03:58]} 22. Nc4 Be6 {[%emt 0:03:15]} 23. Ncb6 {[%emt 0:03:11]} Bxd5 {[%emt 0:00:59]} 24. Nxd5 {[%emt 0:00:42]} Ne7 {[%emt 0:01:16]} 25. Nxe7+ {[%emt 0:02:01]} Bxe7 {[%emt 0:02:39]} 26. d5 {[%emt 0:02:42]} Rc2 {[%emt 0:00:52]} 27. Bc1 {[%emt 0:01:06]} Rd8 {[%emt 0:01:14]} 28. d6 {[%emt 0:00:44]} Bf8 {[%emt 0:00:20]} 29. Rb1 {[%emt 0:00:34]} Rd7 {[%emt 0:00:43]} 30. Re1 {[%emt 0:00:40]} g6 {[%emt 0:03:17]} 31. e6 {[%emt 0:00:38]} fxe6 {[%emt 0:00:48]} 32. Rxe6 {[%emt 0:00:19]} Rxd6 {[%emt 0:01:04]} 33. Rxd6 {[%emt 0:00:56]} Bxd6 {[%emt 0:00:06]} 34. Bh6 {[%emt 0:00:32]} Bxa3 {[%emt 0:03:38]} 35. Rxb7 {[%emt 0:00:21]} Bd6 {[%emt 0:02:29]} 36. Rg7+ {[%emt 0:01:07]} Kh8 {[%emt 0:00:24]} 37. Rd7 {[%emt 0:01:04]} Bc7 {[%emt 0:00:26]} 38. Re7 {[%emt 0:00:32]} Kg8 {[%emt 0:01:16]} 39. Re8+ {[%emt 0:00:15]} Kf7 {[%emt 0:00:18]} 40. Rc8 {[%emt 0:00:19]} Rc6 {[%emt 0:01:53]} 41. Bf4 {[%emt 0:15:21]} Kf6 {[%emt 0:18:58]} 42. Rxc7 {[%emt 0:00:17]} Re6 {[%emt 0:00:23]} 43. Rxh7 {[%emt 0:00:24]} g5 {[%emt 0:00:09]} 44. Rh6+ {[%emt 0:00:07]} Kf7 {[%emt 0:00:22]} 45. Rxe6 {[%emt 0:00:13]} Kxe6 {[%emt 0:00:11]} 46. Bxg5 {[%emt 0:00:12]} Kf7 {[%emt 0:00:11]} 47. h4 {[%emt 0:00:24]} Kg6 {[%emt 0:00:07]} 48. f4 {[%emt 0:00:10]} Kh5 {[%emt 0:00:10]} 49. Kg2 {[%emt 0:00:25]} Kg4 {[%emt 0:00:09]} 50. Be7 {[%emt 0:00:15]} Kh5 {[%emt 0:00:10]} 51. Kf3 {[%emt 0:00:10]} Kh6 {[%emt 0:00:14]} 52. g4 {[%emt 0:00:06]} fxg4+ {[%emt 0:00:15]} 53. Kxg4 {[%emt 0:00:07]} Kg6 {[%emt 0:00:08]} 54. f5+ {[%emt 0:00:07]} Kh7 {[%emt 0:00:27]} 55. Kg5 {[%emt 0:00:08]} Kg7 {[%emt 0:00:09]} 56. f6+ {[%emt 0:00:07]} Kf7 {[%emt 0:00:06]} 57. h5 {[%emt 0:00:06]} Ke6 {[%emt 0:00:10]} 58. h6 {[%emt 0:00:06]} Kd5 {[%emt 0:00:04]} 59. f7 {[%emt 0:00:10]} Kd4 {[%emt 0:00:08]} 60. f8=Q Ke4 61. Qf5+ {[%emt 0:01:23]} Ke3 {[%emt 0:01:03]} 62. Bc5+ {[%emt 0:00:13]} Ke2 {[%emt 0:00:17]} 63. Qf4 {[%emt 0:00:17]} Kd3 {[%emt 0:00:20]} 64. Qd4+ {[%emt 0:00:15]} Ke2 {[%emt 0:00:15]} 65. Qc3 {[%emt 0:00:07]} Kf1 66. Qc2 {[%emt 0:03:41]} Ke1 {[%emt 0:01:53]} 67. Be3 {[%emt 0:00:10]} Kf1 {[%emt 0:00:15]} 68. Qf2# 1-0

[Event "GER-ch Youth U10W 2020"]
[Site "Willingen"]
[Date "2020.10.31"]
[Round "7.13"]
[White "Zimmermann, Lilly Marie"]
[Black "Abram, Kristina-Maria"]
[Result "0-1"]
[ECO "C45"]
[WhiteElo "851"]
[BlackElo "1038"]
[Annotator "NA RC"]
[PlyCount "34"]
[EventDate "2020.10.27"]
[EventType "swiss"]
[EventRounds "7"]
[EventCountry "GER"]
[SourceTitle "playchess.com"]
[Source "ChessBase"]
[SourceQuality "1"]
[TimeControl "40/4500+30:900+30"]

1. e4 {[%emt 0:00:00]} e5 {[%emt 0:00:00]} 2. Nf3 {[%emt 0:00:00]} Nc6 {[%emt 0:00:00]} 3. d4 {[%emt 0:00:00]} exd4 {[%emt 0:00:03]} 4. Nxd4 {[%emt 0:00:00]} Bc5 {[%emt 0:00:17]} 5. Nxc6 {[%emt 0:00:27]} Qf6 {[%emt 0:00:22]} 6. Qd2 {[%emt 0:00:54]} Qxc6 {[%emt 0:00:15]} 7. e5 {[%emt 0:00:32]} Qe4+ {[%emt 0:02:26]} 8. Be2 {[%emt 0:00:30]} Qxg2 {[%emt 0:00:26]} 9. Rf1 {[%emt 0:00:47]} Qxh2 {[%emt 0:00:29]} 10. Bc4 {[%emt 0:00:26]} Qxe5+ {[%emt 0:00:20]} 11. Kd1 {[%emt 0:00:28]} Qf6 {[%emt 0:02:20]} 12. Qe2+ {[%emt 0:01:15]} Ne7 {[%emt 0:00:13]} 13. Qg4 {[%emt 0:00:27]} d5 {[%emt 0:00:32]} 14. Bd3 {[%emt 0:00:21]} Bxg4+ {[%emt 0:00:14]} 15. Ke1 {[%emt 0:01:24]} Qe5+ {[%emt 0:00:15]} 16. Kd2 {[%emt 0:00:31]} Qf4+ {[%emt 0:00:29]} 17. Kc3 {[%emt 0:00:38]} Qb4# 0-1

[Event "GER-ch Youth U10W 2020"]
[Site "Willingen"]
[Date "2020.10.31"]
[Round "7.15"]
[White "Heidtkamp, Anna"]
[Black "John, Linnea"]
[Result "1/2-1/2"]
[ECO "B34"]
[WhiteElo "1078"]
[BlackElo "1146"]
[Annotator "NA RC"]
[PlyCount "127"]
[EventDate "2020.10.27"]
[EventType "swiss"]
[EventRounds "7"]
[EventCountry "GER"]
[SourceTitle "playchess.com"]
[Source "ChessBase"]
[SourceQuality "1"]
[TimeControl "40/4500+30:900+30"]

1. e4 {[%emt 0:00:00]} c5 {[%emt 0:00:00]} 2. Nf3 {[%emt 0:00:00]} Nc6 {[%emt 0:00:00]} 3. d4 {[%emt 0:00:00]} cxd4 {[%emt 0:00:00]} 4. Nxd4 {[%emt 0:00:06]} g6 {[%emt 0:00:04]} 5. Nc3 {[%emt 0:00:08]} Bg7 {[%emt 0:00:08]} 6. Be3 {[%emt 0:00:09]} Nf6 {[%emt 0:00:26]} 7. Nxc6 {[%emt 0:00:13]} bxc6 {[%emt 0:00:59]} 8. e5 {[%emt 0:00:14]} Ng8 {[%emt 0:00:26]} 9. f4 {[%emt 0:00:15]} Nh6 {[%emt 0:01:36]} 10. Bc4 {[%emt 0:00:52]} O-O {[%emt 0:01:45]} 11. Qd2 {[%emt 0:00:16]} Nf5 {[%emt 0:01:17]} 12. Bf2 {[%emt 0:01:26]} d6 {[%emt 0:03:55]} 13. exd6 {[%emt 0:07:00]} Qxd6 {[%emt 0:02:19]} 14. Be3 {[%emt 0:02:22]} Nxe3 {[%emt 0:02:30]} 15. Qxe3 {[%emt 0:00:24]} Qd4 {[%emt 0:07:12]} 16. Qxd4 {[%emt 0:01:31]} Bxd4 {[%emt 0:00:37]} 17. Rd1 {[%emt 0:00:41]} Bg7 {[%emt 0:01:48]} 18. O-O {[%emt 0:00:22]} Bg4 {[%emt 0:02:03]} 19. Rde1 {[%emt 0:00:58]} Bf6 {[%emt 0:06:14]} 20. h3 {[%emt 0:01:03]} Bf5 {[%emt 0:03:58]} 21. g4 {[%emt 0:01:52]} Bd7 {[%emt 0:04:14]} 22. Rd1 {[%emt 0:00:30]} Rfd8 {[%emt 0:02:58]} 23. Rf2 {[%emt 0:00:35]} Be8 {[%emt 0:01:48]} 24. Rfd2 {[%emt 0:00:56]} Rxd2 {[%emt 0:01:38]} 25. Rxd2 {[%emt 0:00:16]} Rb8 {[%emt 0:00:57]} 26. Na4 {[%emt 0:01:22]} c5 {[%emt 0:04:33]} 27. b3 {[%emt 0:00:15]} Bd4+ {[%emt 0:01:42]} 28. Kf1 {[%emt 0:03:10]} Rb7 {[%emt 0:03:59]} 29. Re2 {[%emt 0:01:08]} Bc6 {[%emt 0:08:31]} 30. Ba6 {[%emt 0:01:42]} Rc7 {[%emt 0:03:24]} 31. c3 {[%emt 0:00:43]} Bf6 {[%emt 0:02:26]} 32. Nxc5 {[%emt 0:00:45]} Bf3 {[%emt 0:03:23]} 33. Re3 {[%emt 0:01:48]} Bxg4 {[%emt 0:04:40]} 34. hxg4 {[%emt 0:00:55]} Rxc5 {[%emt 0:02:48]} 35. g5 {[%emt 0:01:51]} Rxc3 {[%emt 0:01:59]} 36. Rxc3 {[%emt 0:00:33]} Bxc3 {[%emt 0:00:20]} 37. Ke2 {[%emt 0:00:20]} e5 {[%emt 0:00:59]} 38. fxe5 {[%emt 0:00:10]} Bxe5 {[%emt 0:00:10]} 39. a4 {[%emt 0:00:11]} Bc3 {[%emt 0:00:41]} 40. Kd3 {[%emt 0:00:15]} Ba5 {[%emt 0:00:47]} 41. Kc4 {[%emt 0:15:06]} Kf8 {[%emt 0:15:39]} 42. Kb5 {[%emt 0:00:10]} Bb6 {[%emt 0:01:06]} 43. a5 {[%emt 0:00:16]} Bc7 {[%emt 0:00:19]} 44. b4 {[%emt 0:00:09]} Ke7 {[%emt 0:01:23]} 45. Kc6 {[%emt 0:00:07]} Bd8 {[%emt 0:00:43]} 46. Kb7 {[%emt 0:00:05]} f6 {[%emt 0:00:28]} 47. gxf6+ {[%emt 0:00:20]} Kxf6 {[%emt 0:00:33]} 48. Kxa7 {[%emt 0:00:08]} g5 {[%emt 0:00:23]} 49. b5 {[%emt 0:00:05]} Bxa5 {[%emt 0:01:31]} 50. Bc8 {[%emt 0:00:34]} h5 {[%emt 0:00:00]} 51. Ka6 {[%emt 0:00:06]} Bd8 {[%emt 0:00:00]} 52. b6 {[%emt 0:03:54]} Bxb6 {[%emt 0:00:00]} 53. Kxb6 {[%emt 0:00:11]} g4 {[%emt 0:00:00]} 54. Bb7 {[%emt 0:00:38]} h4 {[%emt 0:01:36]} 55. Kc5 {[%emt 0:00:04]} Kf5 {[%emt 0:00:09]} 56. Kd4 {[%emt 0:00:05]} Kf4 {[%emt 0:00:34]} 57. Kd3 {[%emt 0:00:11]} h3 {[%emt 0:03:27]} 58. Ke2 {[%emt 0:00:10]} Kg3 {[%emt 0:00:00]} 59. Kf1 {[%emt 0:00:00]} h2 {[%emt 0:00:00]} 60. Ba8 {[%emt 0:00:00]} Kh3 {[%emt 0:00:00]} 61. Kf2 {[%emt 0:00:00]} g3+ {[%emt 0:00:00]} 62. Kf1 {[%emt 0:00:00]} h1=Q+ {[%emt 0:00:00]} 63. Bxh1 {[%emt 0:00:00]} g2+ {[%emt 0:00:00]} 64. Bxg2+ {[%emt 0:00:00]} 1/2-1/2

[Event "GER-ch Youth U10W 2020"]
[Site "Willingen"]
[Date "2020.10.31"]
[Round "7.16"]
[White "Le, Thi An"]
[Black "Jäger, Viktoria"]
[Result "1/2-1/2"]
[ECO "C54"]
[WhiteElo "976"]
[BlackElo "1114"]
[Annotator "NA RC"]
[PlyCount "103"]
[EventDate "2020.10.27"]
[EventType "swiss"]
[EventRounds "7"]
[EventCountry "GER"]
[SourceTitle "playchess.com"]
[Source "ChessBase"]
[SourceQuality "1"]
[TimeControl "40/4500+30:900+30"]

1. e4 {[%emt 0:00:00]} e5 {[%emt 0:00:00]} 2. Nf3 {[%emt 0:00:00]} Nc6 {[%emt 0:00:00]} 3. Bc4 {[%emt 0:00:00]} Bc5 {[%emt 0:00:00]} 4. c3 {[%emt 0:00:00]} Nf6 {[%emt 0:00:00]} 5. d4 {[%emt 0:00:10]} exd4 {[%emt 0:00:00]} 6. cxd4 {[%emt 0:00:12]} Bb4+ {[%emt 0:00:01]} 7. Bd2 {[%emt 0:00:07]} Nxe4 {[%emt 0:00:05]} 8. Bxb4 {[%emt 0:00:10]} Nxb4 {[%emt 0:00:06]} 9. Bxf7+ {[%emt 0:00:15]} Kxf7 {[%emt 0:00:06]} 10. Qb3+ {[%emt 0:00:08]} Kf8 {[%emt 0:00:08]} 11. Qxb4+ {[%emt 0:00:14]} Qe7 {[%emt 0:00:04]} 12. Qxe7+ {[%emt 0:02:05]} Kxe7 {[%emt 0:00:09]} 13. O-O {[%emt 0:00:12]} Kd8 {[%emt 0:00:16]} 14. Ne5 {[%emt 0:00:14]} Rf8 {[%emt 0:00:11]} 15. Nc3 {[%emt 0:01:01]} Nxc3 {[%emt 0:00:50]} 16. bxc3 d6 {[%emt 0:00:28]} 17. Nc4 {[%emt 0:00:51]} Bd7 {[%emt 0:00:26]} 18. Rfe1 {[%emt 0:00:43]} Re8 {[%emt 0:02:45]} 19. Rxe8+ {[%emt 0:00:51]} Bxe8 {[%emt 0:00:39]} 20. a3 {[%emt 0:00:50]} Bb5 {[%emt 0:00:48]} 21. Na5 {[%emt 0:00:59]} Rb8 {[%emt 0:02:54]} 22. Rb1 Bd3 {[%emt 0:06:47]} 23. Rd1 {[%emt 0:02:12]} Be2 {[%emt 0:01:25]} 24. Re1 {[%emt 0:00:29]} Bd3 {[%emt 0:01:36]} 25. Re3 {[%emt 0:00:59]} Ba6 {[%emt 0:01:56]} 26. Rg3 {[%emt 0:00:37]} g6 {[%emt 0:02:08]} 27. Rh3 {[%emt 0:00:19]} h5 {[%emt 0:01:16]} 28. c4 {[%emt 0:01:05]} Kd7 {[%emt 0:01:29]} 29. Rf3 {[%emt 0:00:52]} Re8 {[%emt 0:00:57]} 30. h3 {[%emt 0:01:28]} Re4 {[%emt 0:01:37]} 31. Rd3 {[%emt 0:01:42]} b6 {[%emt 0:00:24]} 32. f3 {[%emt 0:01:27]} Re1+ {[%emt 0:00:42]} 33. Kf2 {[%emt 0:00:45]} Rc1 {[%emt 0:00:09]} 34. Nb3 {[%emt 0:00:38]} Rxc4 {[%emt 0:01:31]} 35. Rd2 {[%emt 0:02:12]} c5 {[%emt 0:00:53]} 36. dxc5 {[%emt 0:00:20]} bxc5 {[%emt 0:00:19]} 37. h4 {[%emt 0:01:08]} Rc3 {[%emt 0:01:01]} 38. Rb2 {[%emt 0:02:35]} Bc4 {[%emt 0:00:16]} 39. Na5 {[%emt 0:00:40]} Bd5 {[%emt 0:00:30]} 40. a4 {[%emt 0:00:31]} Kc8 {[%emt 0:00:45]} 41. f4 {[%emt 0:17:54]} Be4 {[%emt 0:15:35]} 42. Rd2 {[%emt 0:01:40]} Rc2 {[%emt 0:00:39]} 43. Ke3 {[%emt 0:00:39]} Bf5 {[%emt 0:00:21]} 44. Nc6 {[%emt 0:00:33]} Rxd2 {[%emt 0:00:19]} 45. Kxd2 {[%emt 0:00:28]} Kb7 {[%emt 0:00:06]} 46. Ne7 {[%emt 0:00:21]} Bg4 {[%emt 0:00:47]} 47. Nxg6 {[%emt 0:00:31]} Kc6 {[%emt 0:00:20]} 48. Ne7+ {[%emt 0:00:25]} Kd7 {[%emt 0:00:33]} 49. Nd5 {[%emt 0:00:25]} Ke6 {[%emt 0:00:32]} 50. Ne3 {[%emt 0:00:23]} Bf5 {[%emt 0:00:26]} 51. g3 {[%emt 0:00:59]} d5 {[%emt 0:00:17]} 52. a5 {[%emt 0:00:50]} 1/2-1/2

[Event "GER-ch Youth U10W 2020"]
[Site "Willingen"]
[Date "2020.10.31"]
[Round "7.17"]
[White "Blaufuß, Lena"]
[Black "Tran, Hanna Emilie Mai Hoa"]
[Result "1-0"]
[ECO "C57"]
[WhiteElo "1073"]
[BlackElo "986"]
[Annotator "NA RC"]
[PlyCount "75"]
[EventDate "2020.10.27"]
[EventType "swiss"]
[EventRounds "7"]
[EventCountry "GER"]
[SourceTitle "playchess.com"]
[Source "ChessBase"]
[SourceQuality "1"]
[TimeControl "40/4500+30:900+30"]

1. e4 {[%emt 0:00:00]} e5 {[%emt 0:00:00]} 2. Nf3 {[%emt 0:00:00]} Nc6 {[%emt 0:00:02]} 3. Bc4 {[%emt 0:00:24]} Nf6 {[%emt 0:00:39]} 4. Ng5 {[%emt 0:00:41]} d5 {[%emt 0:00:17]} 5. exd5 {[%emt 0:01:32]} Nxd5 {[%emt 0:00:10]} 6. Qf3 {[%emt 0:01:42]} Be6 {[%emt 0:01:44]} 7. Nxe6 {[%emt 0:04:08]} fxe6 {[%emt 0:00:20]} 8. d3 {[%emt 0:04:27]} h6 {[%emt 0:01:09]} 9. a3 {[%emt 0:02:24]} Nd4 {[%emt 0:00:23]} 10. Qd1 {[%emt 0:02:27]} Qd7 {[%emt 0:00:48]} 11. c3 {[%emt 0:02:26]} Nc6 {[%emt 0:01:36]} 12. Qh5+ {[%emt 0:03:18]} Qf7 {[%emt 0:00:29]} 13. Qxf7+ {[%emt 0:00:42]} Kxf7 {[%emt 0:00:07]} 14. O-O {[%emt 0:01:11]} Ke7 {[%emt 0:00:34]} 15. Re1 {[%emt 0:02:33]} a6 {[%emt 0:01:28]} 16. d4 {[%emt 0:02:35]} exd4 {[%emt 0:00:33]} 17. Bxd5 {[%emt 0:00:56]} Kd6 {[%emt 0:03:16]} 18. Bxe6 {[%emt 0:01:17]} Re8 {[%emt 0:00:17]} 19. Bf4+ {[%emt 0:02:56]} Kc5 {[%emt 0:00:25]} 20. b4+ {[%emt 0:02:15]} Kb6 {[%emt 0:00:08]} 21. h3 {[%emt 0:02:32]} Ka7 {[%emt 0:00:55]} 22. Bxc7 {[%emt 0:02:12]} b6 {[%emt 0:01:28]} 23. Kh1 {[%emt 0:06:06]} dxc3 {[%emt 0:01:48]} 24. Nxc3 {[%emt 0:00:44]} Nd4 {[%emt 0:00:14]} 25. Bc4 {[%emt 0:01:34]} Rxe1+ {[%emt 0:00:12]} 26. Rxe1 {[%emt 0:00:19]} Nc2 {[%emt 0:01:33]} 27. Re6 {[%emt 0:04:54]} Kb7 {[%emt 0:01:20]} 28. Bxb6 {[%emt 0:01:59]} Nxa3 {[%emt 0:00:23]} 29. Bd5+ {[%emt 0:01:42]} Kc8 {[%emt 0:00:44]} 30. Rc6+ {[%emt 0:06:53]} Kd7 {[%emt 0:00:25]} 31. Bd4 {[%emt 0:03:01]} Bd6 {[%emt 0:01:01]} 32. Bxg7 {[%emt 0:01:32]} Re8 {[%emt 0:00:44]} 33. g3 {[%emt 0:01:10]} Re1+ {[%emt 0:00:13]} 34. Kg2 {[%emt 0:00:34]} Bxb4 {[%emt 0:00:21]} 35. Na4 {[%emt 0:01:54]} Rd1 {[%emt 0:01:06]} 36. Nb6+ {[%emt 0:01:11]} Kd8 {[%emt 0:00:53]} 37. Bf6+ {[%emt 0:01:59]} Ke8 {[%emt 0:00:20]} 38. Rc8# 1-0

[Event "GER-ch Youth U10W 2020"]
[Site "Willingen"]
[Date "2020.10.31"]
[Round "7.18"]
[White "Tu, Audrey"]
[Black "Zhou, Leyi Charlotte"]
[Result "0-1"]
[ECO "C47"]
[WhiteElo "754"]
[BlackElo "1071"]
[Annotator "NA RC"]
[PlyCount "70"]
[EventDate "2020.10.27"]
[EventType "swiss"]
[EventRounds "7"]
[EventCountry "GER"]
[SourceTitle "playchess.com"]
[Source "ChessBase"]
[SourceQuality "1"]
[TimeControl "40/4500+30:900+30"]

1. e4 {[%emt 0:00:00]} e5 {[%emt 0:00:00]} 2. Nf3 {[%emt 0:00:00]} Nc6 {[%emt 0:00:00]} 3. Nc3 {[%emt 0:00:00]} Nf6 {[%emt 0:00:14]} 4. Bc4 {[%emt 0:00:05]} Nxe4 {[%emt 0:00:17]} 5. d3 {[%emt 0:01:00]} Nxc3 {[%emt 0:00:36]} 6. bxc3 {[%emt 0:00:20]} d5 {[%emt 0:01:40]} 7. Bb5 {[%emt 0:01:19]} Bd6 {[%emt 0:00:26]} 8. Bg5 {[%emt 0:03:11]} f6 {[%emt 0:01:45]} 9. Bh4 {[%emt 0:01:28]} Bg4 {[%emt 0:01:21]} 10. h3 {[%emt 0:00:37]} Bh5 {[%emt 0:00:15]} 11. O-O {[%emt 0:01:49]} O-O {[%emt 0:00:47]} 12. d4 {[%emt 0:00:41]} e4 {[%emt 0:00:32]} 13. g4 {[%emt 0:03:22]} Qd7 {[%emt 0:03:29]} 14. Nd2 {[%emt 0:02:39]} Bg6 {[%emt 0:01:08]} 15. c4 {[%emt 0:03:10]} dxc4 {[%emt 0:03:33]} 16. Nxc4 {[%emt 0:01:59]} Bb4 {[%emt 0:02:32]} 17. d5 {[%emt 0:01:21]} a6 {[%emt 0:01:14]} 18. Bxc6 {[%emt 0:01:43]} bxc6 {[%emt 0:00:11]} 19. a3 {[%emt 0:01:14]} Bc3 {[%emt 0:02:27]} 20. Rb1 {[%emt 0:00:21]} cxd5 {[%emt 0:01:08]} 21. Rb3 {[%emt 0:01:39]} Be5 {[%emt 0:03:33]} 22. Rb4 {[%emt 0:04:50]} Rad8 {[%emt 0:01:35]} 23. Nxe5 {[%emt 0:00:57]} fxe5 {[%emt 0:01:35]} 24. Bxd8 {[%emt 0:00:25]} Qxd8 {[%emt 0:00:48]} 25. c4 {[%emt 0:03:14]} d4 {[%emt 0:04:30]} 26. Re1 {[%emt 0:01:01]} Qh4 {[%emt 0:02:05]} 27. Re2 {[%emt 0:05:31]} Rf3 {[%emt 0:01:31]} 28. Kf1 {[%emt 0:04:54]} Qxh3+ {[%emt 0:00:28]} 29. Ke1 {[%emt 0:01:14]} Qh1+ {[%emt 0:00:26]} 30. Kd2 {[%emt 0:00:08]} Rd3+ {[%emt 0:00:25]} 31. Kc2 {[%emt 0:01:12]} Qxd1+ {[%emt 0:00:36]} 32. Kb2 {[%emt 0:00:32]} Qxe2+ {[%emt 0:00:27]} 33. Ka1 {[%emt 0:00:12]} Rxa3+ {[%emt 0:00:15]} 34. Kb1 {[%emt 0:00:14]} e3+ {[%emt 0:00:09]} 35. Kc1 {[%emt 0:00:36]} Qd2# {[%emt 0:00:40]} 0-1